[Event "Czech Open-Rapid 2022"]
[Site "Pardubice"]
[Date "2022.07.21"]
[Round "4.36"]
[White "Ret, Adam Josef"]
[Black "Rakhmangulova, Iulia"]
[Result "1-0"]
[ECO "A48"]
[WhiteElo "2023"]
[BlackElo "1904"]
[Annotator "TA"]
[PlyCount "50"]
[EventDate "2022.07.20"]
[EventType "swiss"]
[EventCountry "CZE"]
[SourceTitle "playchess.com"]
[Source "ChessBase"]
[SourceQuality "1"]
[TimeControl "1200+10"]

{[%evp 10,50,16,-6,23,-1,20,-20,-1,-19,0,-18,-9,-22,7,0,17,0,17,15,16,20,32,8,24,18,43,38,38,30,56,17,76,8,6,10,24,19,25,0,0,-10,12]} 1. d4 {[%emt 0:00:02]} Nf6 {[%emt 0:00:01]} 2. Nf3 {[%emt 0:00:02]} g6 {[%emt 0:00:01]} 3. b3 {[%emt 0:00:02]} Bg7 {[%emt 0:00:01]} 4. Bb2 {[%emt 0:00:01]} O-O {[%emt 0:00:02]} 5. e3 {[%emt 0:00:01]} d5 {[%emt 0:00:33]} 6. Bd3 {[%emt 0:00:15]} c6 {[%emt 0:00:36] D04: Colle System.} 7. c4 {[%emt 0:00:04]} Bg4 {[%emt 0:00:29]} (7... c5 $5) 8. h3 {[%emt 0:00:13]} Bxf3 {[%emt 0:00:03]} 9. Qxf3 {[%emt 0:00:06]} Nbd7 {[%emt 0:00:17][%cal Oe7e5]} (9... e5 {keeps more tension.} 10. dxe5 Nfd7 11. Qe2 Nxe5 12. O-O dxc4 13. Bxc4 b5) 10. Nd2 {[%emt 0:00:32]} Re8 {[%emt 0:00:07] [#]} (10... e5 {is more complex.} 11. dxe5 Nh5 12. Rd1 Re8) 11. cxd5 $146 {[%emt 0:00:59]} ({Predecessor:} 11. O-O e5 12. Qd1 e4 13. Be2 Nf8 14. cxd5 cxd5 15. Ba3 Ne6 16. Rc1 Nd7 17. Nb1 {0-1 (60) Grimaldi,P-Ragnoni,A Campobasso 2002}) 11... cxd5 {[%emt 0:00:38]} (11... Nxd5 {is interesting.} 12. O-O e5 13. Bc4 Qa5) 12. Qe2 {[%emt 0:01:07]} Rc8 {[%emt 0:01:30]} 13. O-O {[%emt 0:00:10]} a6 {[%emt 0:00:47]} 14. Rac1 {[%emt 0:00:17]} Qa5 {[%emt 0:00:06]} 15. a3 {[%emt 0:00:16]} e6 {[%emt 0:00:29]} 16. Bc2 {[%emt 0:01:24]} Bf8 {[%emt 0:00:30]} 17. b4 {[%emt 0:00:23]} Qb6 {[%emt 0:00:10]} 18. Nb3 {[%emt 0:01:40][%cal Bd2b3,Bb3a5,Ba5b7,Bb7c5][%mdl 32]} Bg7 {[%emt 0:01:10]} 19. Bd3 {[%emt 0:00:42]} Qd6 {[%emt 0:01:02]} 20. Na5 {[%emt 0:02:44]} b5 {[%emt 0:01:56] [#]} (20... Rxc1 $11 21. Rxc1 Rb8) 21. Qd2 {[%emt 0:01:59]} (21. Nb7 $1 $16 {[%cal Rb7d6]} Qb8 22. Nc5 Nxc5 23. bxc5 (23. dxc5 Nd7 $14)) 21... Nb6 $11 {[%emt 0:00:29]} 22. Nb7 {[%emt 0:02:10]} Qb8 {[%emt 0:00:43]} 23. Nc5 {[%emt 0:00:02]} Qa7 {[%emt 0:00:13]} 24. Rfd1 {[%emt 0:01:18]} Nc4 {[%emt 0:00:35]} 25. Bxc4 {[%emt 0:00:06]} dxc4 {[%emt 0:00:09][%mdl 32768] Weighted Error Value: White=0.18 (very precise) /Black=0.17 (very precise) . Loss on time!?} 1-0

[Event "Czech Open-Rapid 2022"]
[Site "Pardubice"]
[Date "2022.07.21"]
[Round "4.37"]
[White "Kroulik, Vaclav"]
[Black "Bares, Jachym"]
[Result "1-0"]
[ECO "C44"]
[WhiteElo "1749"]
[BlackElo "2129"]
[Annotator "TA"]
[PlyCount "171"]
[EventDate "2022.07.20"]
[EventType "swiss"]
[EventCountry "CZE"]
[SourceTitle "playchess.com"]
[Source "ChessBase"]
[SourceQuality "1"]
[TimeControl "1200+10"]

{[%evp 19,171,7,5,0,7,1,0,3,28,16,9,2,16,0,23,6,33,33,88,63,51,0,56,59,64,55,64,60,64,63,79,97,98,96,112,116,141,144,179,167,176,161,158,166,166,156,168,156,156,156,156,156,156,156,156,154,156,158,179,148,143,138,100,147,143,47,47,70,39,61,102,102,108,101,101,80,108,93,127,77,114,97,143,137,494,330,1069,1077,1041,1000,2391,764,29956,29954,29954,7840,29957,5102,29969,29969,29968,29969,29971,29971,29973,29974,29974,29975,29978,29979,29980,29981,29981,29978,29978,29979,29979,29977,29978,29974,29974,29967,29968,29968,29969,29970,29971,29972,29972,29973,29975,0,0,0,29975,29976,29976,29972,29972,29973,29973,29974,29975,29976,29976,29977,29978,29978,29977,29979,29978,29979,29979,29978]} 1. e4 {[%emt 0:00:02]} e5 {[%emt 0:00:01]} 2. Nf3 {[%emt 0:00:02]} Nc6 {[%emt 0:00:01]} 3. d4 {[%emt 0:00:02]} exd4 {[%emt 0:00:01]} 4. Nxd4 {[%emt 0:00:01]} Nf6 {[%emt 0:00:02]} 5. Nc3 {[%emt 0:00:02]} Bb4 {[%emt 0:00:01]} 6. Nxc6 {[%emt 0:00:02]} bxc6 {[%emt 0:00:01]} 7. Bd3 {[%emt 0:00:01]} d5 {[%emt 0:00:01]} 8. exd5 {[%emt 0:00:06]} cxd5 {[%emt 0:00:02]} 9. O-O {[%emt 0:00:03]} O-O {[%emt 0:00:02]} 10. Bg5 {[%emt 0:00:26]} c6 {[%emt 0:00:01]} 11. h3 {[%emt 0:00:27] C47: Scotch Four Knights and Four Knights with 4 g3.} Be6 {[%emt 0:01:04]} 12. Qf3 {[%emt 0:00:18]} Bd6 {[%emt 0:00:08]} 13. Ne2 {[%emt 0:00:29] The position is equal.} Rb8 {[%emt 0:00:16]} 14. b3 {[%emt 0:00:44]} Be5 {[%emt 0:02:54]} 15. Rad1 {[%emt 0:00:19]} h6 {[%emt 0:00:02]} 16. Bh4 {[%emt 0:01:19]} Qc7 {[%emt 0:00:49]} 17. Bg3 {[%emt 0:00:48] [#]} Nd7 $146 {[%emt 0:00:58]} ({Predecessor:} 17... c5 18. c3 Rfd8 19. Nf4 Bxf4 20. Bxf4 Qa5 21. Bxb8 Rxb8 22. Bb1 Ne4 23. c4 Nc3 24. cxd5 {1-0 (52) Bocharov,L (2178)-Martynenko,A (1987) St Petersburg 2008}) 18. Nf4 {[%emt 0:01:40]} Bd6 {[%emt 0:01:11]} (18... Rbe8 $14) 19. Nxe6 {[%emt 0:01:27]} fxe6 {[%emt 0:00:13]} 20. Qg4 {[%emt 0:00:26]} ({White should try} 20. Qe3 $14 Rbe8 21. Bxd6 Qxd6 22. c4 (22. Qxa7 Ra8 $11)) 20... e5 {[%emt 0:03:10]} ({Black should play} 20... Rf6 $11) 21. Qe6+ $40 {[%emt 0:01:37][%mdl 128] White is up to no good.} Kh8 {[%emt 0:00:53]} 22. Qg6 {[%emt 0:00:44][%csl Gd3][%cal Rg6h7]} Nf6 {[%emt 0:00:11] Prevents Qh7+.} 23. Bf5 {[%emt 0:02:13]} (23. f3 {is more complex.} Kg8 24. c4 Rbd8 25. cxd5 cxd5 26. Rc1) 23... Qf7 {[%emt 0:01:21]} 24. Rfe1 {[%emt 0:00:54]} (24. c4 {keeps more tension.} Qe8 25. cxd5 cxd5 26. Rfe1) 24... Qxg6 {[%emt 0:00:48]} 25. Bxg6 {[%emt 0:00:02]} Nd7 {[%emt 0:00:58]} 26. c4 {[%emt 0:01:24]} Rf6 {[%emt 0:00:07]} 27. Bh5 {[%emt 0:00:19] A strong pair of Bishops.} d4 {[%emt 0:01:17]} 28. Bg4 {[%emt 0:00:17]} Rb7 {[%emt 0:01:52]} 29. Bxd7 {[%emt 0:01:24]} Rxd7 {[%emt 0:00:01]} 30. Bxe5 {[%emt 0:00:07]} Bxe5 {[%emt 0:00:01]} 31. Rxe5 $18 {[%emt 0:00:02][%mdl 4096] Endgame KRR-KRR} Kg8 {[%emt 0:00:31]} 32. Kf1 {[%emt 0:00:16]} Kf7 {[%emt 0:00:04]} 33. Ke2 {[%emt 0:00:13]} Re6 {[%emt 0:00:23]} 34. Rxe6 {[%emt 0:00:14]} Kxe6 $16 {[%emt 0:00:01] KR-KR} 35. Kd3 {[%emt 0:00:05]} c5 {[%emt 0:00:02]} 36. Re1+ {[%emt 0:00:05]} Kd6 {[%emt 0:00:12]} 37. Re8 $1 {[%emt 0:00:21]} Rf7 {[%emt 0:00:25]} 38. f3 {[%emt 0:00:16]} Kd7 {[%emt 0:03:36]} 39. Re4 {[%emt 0:00:39]} a5 {[%emt 0:00:13][%cal Ba7a5,Ba5a4][%mdl 32]} 40. Re5 {[%emt 0:00:38]} Kd6 {[%emt 0:00:45]} 41. Re8 {[%emt 0:00:07]} Ra7 {[%emt 0:00:01] Against Ra8} 42. Ke4 {[%emt 0:00:25]} (42. Rb8 $16) 42... a4 $14 {[%emt 0:00:04]} 43. b4 {[%emt 0:01:08]} cxb4 {[%emt 0:00:20] And now ...Re7+ would win.} 44. Kxd4 {[%emt 0:00:02] c5+ is the strong threat.} b3 {[%emt 0:01:01]} 45. axb3 {[%emt 0:00:32]} axb3 {[%emt 0:00:01]} 46. Rb8 {[%emt 0:00:10] Prevents Rb7.} Ra2 {[%emt 0:00:09]} 47. Rxb3 {[%emt 0:00:08] Threatens to win with Rb6+.} Rxg2 {[%emt 0:00:02]} 48. c5+ {[%emt 0:00:07]} Kc7 {[%emt 0:00:06] [#]} 49. Re3 {[%emt 0:00:54]} (49. f4 $142 $1) 49... Kd7 {[%emt 0:00:13]} 50. f4 {[%emt 0:00:17]} h5 {[%emt 0:00:13]} (50... Rf2 $142) 51. Re5 $16 {[%emt 0:00:27]} g6 {[%emt 0:00:22][%mdl 8192]} (51... h4 $16 {is a better chance.} 52. Rg5 Rd2+ 53. Ke5 Kc6) 52. Rg5 {[%emt 0:00:20]} Rh2 {[%emt 0:00:01]} (52... Rf2 53. Ke5 (53. Rxg6 Rxf4+ 54. Kd5 Rf5+ 55. Kc4 Rf4+ 56. Kd5 Rf3 $16) 53... Rc2) 53. Rxg6 $18 {[%emt 0:00:44]} Rxh3 {[%emt 0:00:01]} 54. Rh6 {[%emt 0:00:30]} Rf3 {[%emt 0:00:08]} 55. Ke4 {[%emt 0:00:02]} (55. Ke5 $142 Rc3 56. Kd5) 55... Rc3 {[%emt 0:00:01]} 56. Rxh5 {[%emt 0:00:03]} Rc4+ {[%emt 0:00:06]} 57. Kf3 {[%emt 0:00:36]} (57. Ke3 $142 Ke6 58. c6 Kd6 59. Rh6+ Kd5 60. Kf3 Rc1 61. Kg4 Rf1 62. Kg5) 57... Ke6 {[%emt 0:00:01]} 58. Kg4 {[%emt 0:00:04]} (58. Re5+ $142 Kf7 59. Ke3 Kf6 60. Rh5 Ke6 61. Rg5 Ke7 62. Rf5 Ke6 63. Kd3) 58... Kf6 {[%emt 0:00:02]} 59. Rh6+ {[%emt 0:00:04]} Kg7 {[%emt 0:00:02]} 60. Rc6 {[%emt 0:00:01]} Kf7 {[%emt 0:00:03]} 61. Kf5 {[%emt 0:00:04]} Rc1 {[%emt 0:00:04]} 62. Rc7+ {[%emt 0:00:02]} Ke8 {[%emt 0:00:01]} 63. Ke6 {[%emt 0:00:48][%cal Rc7c8]} Kd8 {[%emt 0:00:00]} 64. Rd7+ {[%emt 0:00:06]} Ke8 {[%emt 0:00:20]} 65. Rd5 {[%emt 0:00:03]} Re1+ {[%emt 0:00:07]} 66. Kf6 {[%emt 0:00:01]} Rh1 {[%emt 0:00:15]} 67. f5 {[%emt 0:00:07]} Rh6+ {[%emt 0:00:04]} 68. Ke5 {[%emt 0:00:06]} Rc6 {[%emt 0:00:01]} 69. Kf4 {[%emt 0:00:27]} Kf7 {[%emt 0:00:06]} 70. Kg5 {[%emt 0:00:02]} Ke7 {[%emt 0:00:08]} 71. Re5+ {[%emt 0:00:27]} Kf7 {[%emt 0:00:05]} 72. Kf4 {[%emt 0:00:46]} Kf6 {[%emt 0:00:01] [#]} 73. Ke4 $1 {[%emt 0:00:07]} Ra6 {[%emt 0:00:25]} 74. Kd5 {[%emt 0:01:16]} Ra8 {[%emt 0:00:16]} 75. Kd6 {[%emt 0:00:39]} Ra6+ $1 {[%emt 0:00:44]} 76. Kd5 {[%emt 0:00:02]} Ra8 $1 {[%emt 0:00:00]} 77. Re6+ {[%emt 0:00:23] White mates.} Kxf5 {[%emt 0:00:01]} 78. Re7 {[%emt 0:00:03]} Kf6 {[%emt 0:00:03]} 79. Re3 {[%emt 0:00:07]} Rd8+ {[%emt 0:00:20]} 80. Kc6 {[%emt 0:00:03]} Rd1 {[%emt 0:00:01]} 81. Kc7 {[%emt 0:00:03]} Rc1 {[%emt 0:00:13]} 82. c6 {[%emt 0:00:01][%cal Bc5c6,Bc6c7][%mdl 32]} Rh1 {[%emt 0:00:04]} 83. Kd7 {[%emt 0:00:12]} Rd1+ {[%emt 0:00:12]} 84. Kc8 {[%emt 0:00:02]} Rc1 {[%emt 0:00:02]} 85. c7 {[%emt 0:00:01]} Rd1 {[%emt 0:00:02]} 86. Rb3 {[%emt 0:00:44] Weighted Error Value: White=0.14 (very precise) /Black=0.70} 1-0

[Event "Czech Open-Rapid 2022"]
[Site "Pardubice"]
[Date "2022.07.21"]
[Round "4.38"]
[White "Melichar, Vojtech"]
[Black "Koska, Jiri"]
[Result "1-0"]
[ECO "A45"]
[WhiteElo "1907"]
[BlackElo "1856"]
[Annotator "TA"]
[PlyCount "127"]
[EventDate "2022.07.20"]
[EventType "swiss"]
[EventCountry "CZE"]
[SourceTitle "playchess.com"]
[Source "ChessBase"]
[SourceQuality "1"]
[TimeControl "1200+10"]

{[%evp 9,127,0,0,0,27,32,73,20,39,37,47,36,26,33,75,62,90,73,94,71,67,47,47,28,53,47,105,72,127,127,158,131,122,123,132,125,125,88,122,125,126,114,150,143,177,142,169,167,180,170,170,181,216,206,256,234,222,190,208,168,197,190,314,194,395,225,407,219,384,254,458,286,279,293,412,428,861,808,859,852,814,807,962,1058,978,996,1341,1224,29986,29987,29989,29990,29992,29993,29993,29991,29994,0,29986,29987,29986,29985,29985,29984,29984,29985,29984,29980,29980,29979,29979,29978,29976,29978,29988,29989,29990,29991,29992,29993]} 1. d4 {[%emt 0:00:04]} Nf6 {[%emt 0:00:01]} 2. Nc3 {[%emt 0:00:02]} g6 {[%emt 0:00:18]} 3. Bf4 {[%emt 0:00:05]} d5 {[%emt 0:00:02]} 4. e3 {[%emt 0:00:15]} Bg7 {[%emt 0:00:26]} 5. h4 {[%emt 0:00:23]} h5 {[%emt 0:02:30]} 6. Nf3 {[%emt 0:00:24] A45: Trompowsky Attack.} Bg4 {[%emt 0:00:08]} 7. Qd2 {[%emt 0:00:03]} c6 {[%emt 0:00:23]} 8. Ne5 {[%emt 0:02:18]} (8. Ng5 $16) 8... Nbd7 {[%emt 0:00:59]} 9. f3 {[%emt 0:00:01]} Be6 {[%emt 0:00:50]} 10. O-O-O {[%emt 0:02:18]} Nxe5 {[%emt 0:02:44]} 11. Bxe5 {[%emt 0:00:02] [#]} Rg8 $146 {[%emt 0:00:01]} ({Predecessor:} 11... b5 12. Kb1 a5 13. Bd3 O-O 14. Rdg1 Qd7 15. Qe2 a4 16. a3 Qb7 17. Na2 Qd7 {1-0 (42) Livaic,L (2507)-Villacorta Nicolas,D (2153) Tornelo INT 2020}) 12. Ne2 {[%emt 0:01:57][%cal Bc3e2,Be2f4,Bf4d3,Bd3e5][%mdl 32]} Qd7 {[%emt 0:00:24]} 13. Nf4 {[%emt 0:00:56]} Nh7 {[%emt 0:01:06]} 14. Bxg7 {[%emt 0:02:42] White is more active.} Rxg7 {[%emt 0:00:02]} 15. Qb4 {[%emt 0:00:01]} Bf5 {[%emt 0:01:00]} 16. Bd3 {[%emt 0:00:28]} (16. c4 {is interesting.} e6 17. cxd5 exd5 18. Bd3) 16... Bxd3 {[%emt 0:00:16]} 17. Nxd3 {[%emt 0:00:03]} b6 {[%emt 0:03:32] Inhibits Nc5.} ({Black should try} 17... Qc7 $14) 18. Qa4 {[%emt 0:01:24]} Rg8 {[%emt 0:03:41]} ({Black should play} 18... Rc8) 19. Ne5 $16 {[%emt 0:00:28][%csl LRc6,LRd7]} Qd6 {[%emt 0:00:09]} 20. Qxc6+ {[%emt 0:01:40]} Qxc6 {[%emt 0:00:01]} 21. Nxc6 {[%emt 0:00:01]} e6 {[%emt 0:00:02]} 22. e4 {[%emt 0:00:49]} Nf6 {[%emt 0:01:20]} 23. Rhe1 {[%emt 0:00:50]} Kd7 {[%emt 0:00:13]} 24. Ne5+ {[%emt 0:00:01]} Ke7 {[%emt 0:00:01]} 25. b3 {[%emt 0:03:10]} Rgc8 {[%emt 0:00:47]} 26. Kb2 {[%emt 0:00:02]} Kf8 {[%emt 0:00:08]} 27. Nd3 {[%emt 0:01:25]} Rd8 {[%emt 0:00:37]} 28. e5 {[%emt 0:00:01]} Ne8 {[%emt 0:00:52]} 29. g4 {[%emt 0:00:12]} Ng7 {[%emt 0:00:13]} 30. Nf4 {[%emt 0:00:08]} Kg8 {[%emt 0:00:34]} 31. Rg1 {[%emt 0:00:52]} Kh7 {[%emt 0:00:07]} 32. Rg2 {[%emt 0:00:17]} Rg8 {[%emt 0:00:15]} 33. Nh3 {[%emt 0:00:42] Black must now prevent Ng5+.} Rgf8 {[%emt 0:00:55]} 34. Rdg1 {[%emt 0:00:05]} Rac8 {[%emt 0:00:07]} 35. Nf4 {[%emt 0:00:20]} Rg8 {[%emt 0:00:01]} (35... Kh6 $142 36. c3 Rc7) 36. a4 {[%emt 0:00:02] Strongly threatening gxh5.} Rb8 $2 {[%emt 0:00:22]} (36... Kh6 37. c3 Rh8) 37. c3 {[%emt 0:00:21]} (37. gxh5 $142 gxh5 38. Rg5) 37... Rbc8 $2 {[%emt 0:00:04]} (37... Kh6 {was worth a try.} 38. Ra1 Ra8) 38. Kc2 {[%emt 0:00:09]} (38. gxh5 $142 Nxh5 39. Nxh5 gxh5 40. Rxg8 Rxg8 41. Rxg8 Kxg8 42. c4) 38... Rb8 $2 {[%emt 0:00:05]} (38... Kh6 39. Kd3 Rc7) 39. Kd3 {[%emt 0:00:02]} Rbc8 $2 {[%emt 0:00:14]} (39... hxg4 40. fxg4 Rgd8) 40. c4 {[%emt 0:00:36]} dxc4+ {[%emt 0:00:10]} 41. bxc4 {[%emt 0:00:01][%cal Bb3c4,Bc4d5,Bd5d6][%mdl 32] And now gxh5 would win.} Rgf8 {[%emt 0:00:11]} (41... Kh6 {keeps fighting.} 42. Rc1 Rh8) 42. gxh5 $18 {[%emt 0:00:25]} Nxh5 {[%emt 0:00:02]} (42... Kh6 $142 43. hxg6 f6) 43. Nxh5 {[%emt 0:00:02]} gxh5 {[%emt 0:00:02][%mdl 4096] Endgame KRR-KRR} 44. Rg7+ {[%emt 0:00:01]} Kh6 {[%emt 0:00:02]} 45. d5 {[%emt 0:00:17] Threatens to win with dxe6.} exd5 {[%emt 0:00:12]} 46. cxd5 {[%emt 0:00:01]} Rc5 {[%emt 0:00:01]} 47. Kd4 {[%emt 0:00:11]} Rd8 {[%emt 0:01:12]} 48. d6 {[%emt 0:00:01]} Rdc8 {[%emt 0:00:30]} 49. Rxf7 {[%emt 0:00:09]} Rc4+ {[%emt 0:00:00]} 50. Kd5 {[%emt 0:00:01]} R4c5+ {[%emt 0:00:13]} 51. Ke6 {[%emt 0:00:01]} Re8+ {[%emt 0:00:01]} 52. Re7 {[%emt 0:00:07]} Rf8 {[%emt 0:00:12]} 53. Rf7 $2 {[%emt 0:00:42]} (53. Reg7 {mates} Re8+ 54. Kf7 Rf8+ 55. Kxf8 Rc8+ 56. Ke7 Rc7+ 57. dxc7 a6 58. R1g6#) 53... Rxe5+ $2 {[%emt 0:00:26][%mdl 8192] [#]} 54. Kxe5 {[%emt 0:00:01] White mates.} Rxf7 $11 {KR-KR} 55. Ke6 {[%emt 0:00:01]} Rxf3 {[%emt 0:00:18]} 56. d7 {[%emt 0:00:01]} Re3+ {[%emt 0:00:01]} 57. Kd6 {[%emt 0:00:09]} Rd3+ {[%emt 0:00:01]} 58. Kc7 {[%emt 0:00:01]} Rc3+ {[%emt 0:00:01]} 59. Kb7 {[%emt 0:00:02]} Rd3 {[%emt 0:00:02] [#]} 60. Kc8 $1 {[%emt 0:00:03]} Rc3+ {[%emt 0:00:01]} 61. Kd8 {[%emt 0:00:02]} a6 {[%emt 0:00:11]} 62. Rg5 {[%emt 0:00:08]} Rc4 {[%emt 0:00:28]} 63. Ke7 {[%emt 0:00:02]} Re4+ {[%emt 0:00:01]} 64. Kd6 {[%emt 0:00:02] Weighted Error Value: White=0.34/Black=0.50} 1-0

[Event "Czech Open-Rapid 2022"]
[Site "Pardubice"]
[Date "2022.07.21"]
[Round "4.39"]
[White "Kavalir, Jan"]
[Black "Seidl, Vaclav"]
[Result "1-0"]
[ECO "B23"]
[WhiteElo "1987"]
[BlackElo "1251"]
[Annotator "TA"]
[PlyCount "93"]
[EventDate "2022.07.20"]
[EventType "swiss"]
[EventCountry "CZE"]
[SourceTitle "playchess.com"]
[Source "ChessBase"]
[SourceQuality "1"]
[TimeControl "1200+10"]

{[%evp 16,92,14,22,45,38,60,40,53,49,74,35,106,96,85,104,95,13,18,0,109,100,258,266,321,339,323,305,353,352,352,340,320,264,320,272,268,243,543,531,783,764,710,334,332,327,452,427,29989,29990,29990,29991,29991,29991,29989,29990,29988,29982,29987,29988,29991,29991,29992,29993,29993,29994,29996,29996,29997,29997,29997,29996,29996,29997,29997,29998,29998,29999,29999]} 1. e4 {[%emt 0:00:10]} c5 {[%emt 0:00:03]} 2. Nc3 {[%emt 0:00:01]} d6 {[%emt 0:00:04]} 3. g3 {[%emt 0:00:02]} Nf6 {[%emt 0:00:05]} 4. Bg2 {[%emt 0:00:02]} g6 {[%emt 0:00:01]} 5. d3 {[%emt 0:00:04]} Bg7 {[%emt 0:00:04]} 6. h3 {[%emt 0:00:14]} O-O {[%emt 0:00:21]} 7. Nge2 {[%emt 0:00:11]} Nc6 {[%emt 0:00:25]} 8. O-O {[%emt 0:00:07]} Bd7 {[%emt 0:01:17]} 9. Be3 {[%emt 0:00:28]} Re8 {[%emt 0:00:09][%cal Ob7b5] B25: Closed Sicilian: 3 g3, lines without early Be3.} 10. f4 {[%emt 0:00:26] [#]} b6 $146 {[%emt 0:01:03]} ({Predecessor:} 10... e6 11. Qd2 d5 12. Bxc5 dxe4 13. dxe4 Qa5 14. Bf2 Rad8 15. Qe3 Nb4 16. Rac1 Bc6 17. Qxa7 Qxa7 18. Bxa7 {1-0 (66) Demski,M (1737)-Nagly,W (1396) Wroclaw 2022}) 11. g4 {[%emt 0:02:43][%cal Bg3g4,Bg4g5,Bg5f6][%mdl 32]} e6 {[%emt 0:02:44][%cal Od6d5] White is slightly better.} 12. Ng3 {[%emt 0:02:16]} Kh8 {[%emt 0:02:37]} 13. Qd2 {[%emt 0:01:16]} Qc7 {[%emt 0:01:46]} (13... d5 $14) 14. g5 $16 {[%emt 0:00:57] [#] And now Nb5 would win.} Ng8 {[%emt 0:00:40]} 15. f5 $36 {[%emt 0:01:31][%mdl 2048] White is on the roll.} exf5 {[%emt 0:01:04]} 16. Nd5 {[%emt 0:00:12]} ({White should try} 16. Bf4 $16) 16... Qc8 $11 {[%emt 0:00:38]} 17. c3 {[%emt 0:02:01]} Nge7 {[%emt 0:01:53]} (17... Be5 $11 {remains equal.} 18. Bf4 fxe4) 18. Nf6 $16 {[%emt 0:00:55] White is more active.} Bxf6 $2 {[%emt 0:01:32] A mistake that costs the game.} (18... Qc7 $16 {is a better defense.}) 19. gxf6 $18 {[%emt 0:00:02]} Ng8 {[%emt 0:00:09]} 20. exf5 {[%emt 0:00:27]} gxf5 {[%emt 0:01:50]} 21. Bg5 {[%emt 0:05:06]} Rb8 {[%emt 0:01:21]} 22. d4 {[%emt 0:00:38] Against Ne5} Nd8 {[%emt 0:01:23]} 23. d5 {[%emt 0:00:46]} Nb7 {[%emt 0:00:23]} 24. Bh4 {[%emt 0:00:14]} h6 {[%emt 0:00:40] Against Qg5} 25. c4 {[%emt 0:01:48] Kh2 is the strong threat.} Re5 {[%emt 0:00:32]} 26. Rae1 {[%emt 0:00:15]} Rxe1 $2 {[%emt 0:00:38]} (26... b5 27. b3 a5) 27. Rxe1 {[%emt 0:00:19]} Qf8 {[%emt 0:00:07] Prevents Re7.} 28. Qf4 {[%emt 0:00:02]} Re8 {[%emt 0:00:21]} 29. Rxe8 {[%emt 0:00:32]} (29. Nxf5 $142 {Black must now prevent Ne7.} Re5 30. Rxe5 dxe5 31. Qxe5 Bxf5 32. Qxf5) 29... Qxe8 {[%emt 0:00:01]} 30. Nxf5 {[%emt 0:00:17]} Bxf5 {[%emt 0:00:05]} 31. Qxf5 {[%emt 0:00:01] [#] White wants to mate with Be4.} Qf8 {[%emt 0:00:47]} (31... Qe3+ $18 32. Kh2 Qd4) 32. Be4 {[%emt 0:00:09][%csl Ge4][%cal Rf5h7] White mates.} Nxf6 {[%emt 0:00:21]} 33. Bxf6+ {[%emt 0:00:03] This bishop pair is nice.} Qg7+ {[%emt 0:00:03]} 34. Bxg7+ {[%emt 0:00:03]} Kxg7 35. Qd7 {[%emt 0:00:06]} Na5 {[%emt 0:00:04]} 36. Qa4 {[%emt 0:00:07]} Nb7 {[%emt 0:00:04]} 37. Qxa7 {[%emt 0:00:02]} Nd8 {[%emt 0:00:01]} 38. Qxb6 {[%emt 0:00:05]} Ne6 {[%emt 0:00:04]} 39. dxe6 {[%emt 0:00:07]} fxe6 {[%emt 0:00:00]} 40. Qxd6 {[%emt 0:00:07]} h5 {[%emt 0:00:01]} 41. Qxe6 {[%emt 0:00:04]} h4 {[%emt 0:00:01]} 42. Qg6+ {[%emt 0:00:01]} Kf8 {[%emt 0:00:04]} 43. Qh7 {[%emt 0:00:08]} Ke8 44. Qg7 {[%emt 0:00:19]} Kd8 {[%emt 0:00:03]} 45. Bf5 {[%emt 0:00:09][%csl Gf5][%cal Rg7d7]} Ke8 {[%emt 0:00:02]} 46. Be6 {[%emt 0:00:04]} Kd8 {[%emt 0:00:04]} 47. Qd7# {Weighted Error Value: White=0.24 (precise) /Black=0.61} 1-0

[Event "Czech Open-Rapid 2022"]
[Site "Pardubice"]
[Date "2022.07.21"]
[Round "4.40"]
[White "Vokoun, Jan"]
[Black "Lihotsky, Lukas"]
[Result "1-0"]
[ECO "A25"]
[WhiteElo "2056"]
[BlackElo "1935"]
[Annotator "NA RC"]
[PlyCount "73"]
[EventDate "2022.07.20"]
[EventType "swiss"]
[EventCountry "CZE"]
[SourceTitle "playchess.com"]
[Source "ChessBase"]
[SourceQuality "1"]
[TimeControl "1200+10"]

1. c4 {[%emt 0:00:02]} e5 {[%emt 0:00:05]} 2. Nc3 {[%emt 0:00:02]} Nc6 {[%emt 0:00:02]} 3. g3 {[%emt 0:00:03]} Bc5 {[%emt 0:00:01]} 4. Bg2 {[%emt 0:00:09]} d6 {[%emt 0:00:01]} 5. a3 {[%emt 0:00:08]} a5 {[%emt 0:00:02]} 6. e3 {[%emt 0:01:00]} Nge7 {[%emt 0:00:12]} 7. d3 {[%emt 0:00:14]} h5 {[%emt 0:00:51]} 8. Rb1 {[%emt 0:00:42]} Bg4 {[%emt 0:00:18]} 9. Qc2 {[%emt 0:00:30]} Qc8 {[%emt 0:00:31]} 10. Nd5 {[%emt 0:00:17]} Nxd5 {[%emt 0:00:25]} 11. cxd5 {[%emt 0:00:01]} Ne7 {[%emt 0:00:30]} 12. b4 {[%emt 0:00:05]} axb4 {[%emt 0:00:05]} 13. axb4 {[%emt 0:00:02]} Bb6 {[%emt 0:00:09]} 14. Bb2 {[%emt 0:01:57]} h4 {[%emt 0:00:33]} 15. h3 {[%emt 0:00:48]} Bd7 {[%emt 0:00:20]} 16. g4 {[%emt 0:00:01]} Ng6 {[%emt 0:04:32]} 17. Ne2 {[%emt 0:00:26]} f5 {[%emt 0:00:59]} 18. gxf5 {[%emt 0:00:28]} Bxf5 {[%emt 0:00:06]} 19. Nc3 {[%emt 0:00:39]} Qd8 {[%emt 0:03:37]} 20. Be4 {[%emt 0:02:32]} Qg5 {[%emt 0:01:13]} 21. Qe2 {[%emt 0:02:20]} Bd7 {[%emt 0:02:11]} 22. Kd2 {[%emt 0:00:15]} Qf6 {[%emt 0:00:10]} 23. Rbg1 {[%emt 0:03:37]} Ne7 {[%emt 0:00:05]} 24. Rh2 {[%emt 0:00:37]} c5 {[%emt 0:02:57]} 25. dxc6 {[%emt 0:01:30]} bxc6 {[%emt 0:00:03]} 26. b5 {[%emt 0:00:01]} d5 {[%emt 0:00:15]} 27. bxc6 {[%emt 0:00:17]} Bxc6 {[%emt 0:00:04]} 28. Bf3 {[%emt 0:00:50]} d4 {[%emt 0:00:22]} 29. Ne4 {[%emt 0:01:22]} Ba5+ {[%emt 0:00:11]} 30. Kc1 {[%emt 0:00:03]} Qe6 {[%emt 0:01:17]} 31. Rxg7 {[%emt 0:01:46]} Rc8 {[%emt 0:02:04]} 32. Kb1 {[%emt 0:00:10]} Ba4 {[%emt 0:00:24]} 33. Bg4 {[%emt 0:00:19]} Qb6 {[%emt 0:00:51]} 34. Bxc8 {[%emt 0:00:02]} Nxc8 {[%emt 0:00:03]} 35. exd4 {[%emt 0:00:29]} Rh6 {[%emt 0:00:16]} 36. Nc5 {[%emt 0:00:23]} Bc6 {[%emt 0:00:13]} 37. Qxe5+ {[%emt 0:00:17]} 1-0